[Event "Mitropa Cup Open 2022"]
[Site "Corte"]
[Date "2022.05.01"]
[Round "2.6"]
[White "Maurizzi, Marc'Andria"]
[Black "Krastev, Alexander"]
[Result "1-0"]
[ECO "B33"]
[WhiteElo "2489"]
[BlackElo "2402"]
[Annotator "TA"]
[PlyCount "69"]
[EventDate "2022.04.30"]
[EventType "team-tourn"]
[EventCountry "FRA"]
[SourceTitle "playchess.com"]
[Source "ChessBase"]
[SourceQuality "1"]
[TimeControl "40/5400+30:1800+30"]

{[%evp 23,69,15,26,19,8,0,31,29,37,38,27,5,15,19,16,16,18,18,31,24,33,22,14,8,46,35,35,35,38,31,35,0,0,-5,77,60,55,56,329,301,328,325,326,321,309,311,297,287]} 1. e4 {[%emt 0:00:02]} c5 {[%emt 0:01:15]} 2. Nf3 {[%emt 0:00:04][%cal Bg1f3,Bf3d4,Bd4b5][%mdl 32]} Nc6 {[%emt 0:00:09]} 3. d4 {[%emt 0:01:13]} cxd4 {[%emt 0:00:12]} 4. Nxd4 {[%emt 0:00:02]} Nf6 {[%emt 0:00:14]} 5. Nc3 {[%emt 0:00:05]} e6 {[%emt 0:00:05]} 6. Ndb5 {[%emt 0:05:08]} Bb4 {[%emt 0:00:32]} 7. a3 {[%emt 0:00:15]} Bxc3+ {[%emt 0:00:07]} 8. Nxc3 {[%emt 0:00:01]} d5 {[%emt 0:00:08]} 9. Bd3 {[%emt 0:00:03][%cal Bf1d3,Bd3e4,Be4f3][%mdl 32]} dxe4 {[%emt 0:00:20]} 10. Nxe4 {[%emt 0:00:04]} Nxe4 {[%emt 0:00:06]} 11. Bxe4 {[%emt 0:00:02]} Qxd1+ {[%emt 0:00:11]} 12. Kxd1 {[%emt 0:00:04]} Bd7 {[%emt 0:01:10][%cal Bc8d7,Bd7e8,Be8c6][%mdl 32]} 13. b3 {[%emt 0:11:58] B45: Sicilian Four Knights.} O-O-O {[%emt 0:24:29]} 14. Bb2 {[%emt 0:03:10] [#]} f5 $146 {[%emt 0:01:36]} ({Predecessor:} 14... e5 15. Ke2 f6 16. Rhd1 Be6 17. c4 h6 18. Bc3 Kc7 19. f3 b6 20. h4 a5 {½-½ (33) Pacher,M (2366)-Pihlajasalo,H (2264) Ohrid 2009}) 15. Bf3 {[%emt 0:12:25] White is slightly better.} Be8+ {[%emt 0:38:33]} 16. Kc1 {[%emt 0:11:34]} Nd4 {[%emt 0:00:11]} 17. Bd1 {[%emt 0:05:28]} Bc6 {[%emt 0:01:36]} 18. c3 {[%emt 0:06:23]} Nb5 {[%emt 0:00:08]} (18... Bxg2 $2 19. Rg1 $18) 19. a4 {[%emt 0:02:57]} Nd6 {[%emt 0:14:00]} (19... Bxg2 $2 20. Rg1 Rxd1+ 21. Rxd1 $18) 20. f3 {[%emt 0:00:08]} f4 {[%emt 0:00:20]} 21. c4 {[%emt 0:08:26]} Nf5 {[%emt 0:00:29]} 22. b4 {[%emt 0:14:56][%cal Bb3b4,Bb4b5,Bb5b6][%mdl 32]} Ne3 {[%emt 0:03:13][%csl LRc4,LRg2]} 23. Be2 {[%emt 0:02:23]} Rhg8 {[%emt 0:03:35]} 24. b5 {[%emt 0:04:52]} Be8 {[%emt 0:00:18]} 25. Ra3 {[%emt 0:01:09]} Bg6 {[%emt 0:00:56]} 26. Be5 {[%emt 0:03:11]} Rgf8 {[%emt 0:00:26]} 27. Rc3 {[%emt 0:03:15]} Nxg2 {[%emt 0:05:25]} 28. c5 {[%emt 0:01:14] aiming for b6.} Ne3 {[%emt 0:00:13] [#]} (28... Rf5 $1 $11 {keeps the balance.} 29. Bxg7 Ne3) 29. b6 $1 $36 {[%emt 0:01:17][%mdl 2048] White is more active.} a5 {[%emt 0:03:17]} 30. c6 {[%emt 0:00:55][%cal Oe2a6] Hoping for Ba6!} bxc6 $2 {[%emt 0:01:41][%mdl 8192] Black cannot hold the game after this.} (30... Rf7 $1 $14) 31. Ba6+ $18 {[%emt 0:01:49] A strong pair of Bishops. White has a decisive advantage.} ({And not} 31. Rxc6+ Kb7 32. Bb5 (32. Rxe6 Rc8+ 33. Bc7 Nd5 $17) 32... Rc8 $17) 31... Kd7 {[%emt 0:00:04] [#]} 32. Rxe3 {[%emt 0:00:36][%mdl 512] Really sharp!} fxe3 {[%emt 0:00:47]} 33. Rd1+ {[%emt 0:00:01]} Ke7 {[%emt 0:00:13]} 34. Rxd8 {[%emt 0:00:04]} Rxd8 {[%emt 0:00:07]} (34... Kxd8 $2 35. b7 Kd7 36. b8=Q Rxb8 37. Bxb8 $18) 35. b7 {[%emt 0:00:06] Weighted Error Value: White=0.04 (flawless) /Black=0.36} 1-0

[Event "Mitropa Cup Open 2022"]
[Site "Corte"]
[Date "2022.05.01"]
[Round "2.7"]
[White "Koelle, Tobias"]
[Black "Laurent-Paoli, Pierre"]
[Result "1/2-1/2"]
[ECO "D85"]
[WhiteElo "2384"]
[BlackElo "2487"]
[Annotator "TA"]
[PlyCount "59"]
[EventDate "2022.04.30"]
[EventType "team-tourn"]
[EventCountry "FRA"]
[SourceTitle "playchess.com"]
[Source "ChessBase"]
[SourceQuality "1"]
[TimeControl "40/5400+30:1800+30"]

{[%evp 25,59,11,8,0,0,0,11,0,0,0,0,0,9,0,0,0,0,0,0,0,0,0,0,0,0,0,0,-248,0,0,8,0,0,0,0,0]} 1. d4 {[%emt 0:00:04]} Nf6 {[%emt 0:00:53]} 2. c4 {[%emt 0:00:20]} g6 {[%emt 0:01:29]} 3. Nc3 {[%emt 0:00:09]} d5 {[%emt 0:00:07]} 4. cxd5 {[%emt 0:00:06]} Nxd5 {[%emt 0:00:05]} 5. e4 {[%emt 0:00:05]} Nxc3 {[%emt 0:00:07]} 6. bxc3 {[%emt 0:00:03]} Bg7 {[%emt 0:00:18]} 7. Be3 {[%emt 0:00:12]} c5 {[%emt 0:00:39]} 8. Qd2 {[%emt 0:07:04]} Qa5 {[%emt 0:02:27]} 9. Nf3 {[%emt 0:01:17]} Nc6 {[%emt 0:01:00]} 10. Rb1 {[%emt 0:01:16]} a6 {[%emt 0:00:10]} 11. Rc1 {[%emt 0:00:04]} cxd4 {[%emt 0:00:36]} 12. cxd4 {[%emt 0:00:06]} Qxd2+ {[%emt 0:00:04]} 13. Kxd2 {[%emt 0:00:05]} e6 {[%emt 0:00:18]} 14. h4 {[%emt 0:00:41][%cal Bh2h4,Bh4h5][%mdl 32] D85: Exchange Grünfeld: Unusual White 7th moves and lines with 7 Nf3.} O-O {[%emt 0:01:07]} 15. Bd3 {[%emt 0:01:46]} h6 $1 {[%emt 0:02:23] 15...h6 scores better than 15...Rd8.} 16. e5 {[%emt 0:09:12] Black should prevent h5.} Rd8 {[%emt 0:01:17]} 17. h5 {[%emt 0:01:05]} g5 {[%emt 0:00:05]} 18. Nxg5 {[%emt 0:00:15] next Ne4 is good for White.} Nxd4 {[%emt 0:00:26]} ({But not} 18... hxg5 19. h6 Nxe5 20. dxe5 (20. hxg7 Nxd3 21. Bxg5 Kxg7 $11) 20... Bxe5 21. Bxg5 $16) 19. Bh7+ {[%emt 0:15:18]} Kf8 {[%emt 0:00:05]} 20. Nxf7 {[%emt 0:00:04]} Kxf7 {[%emt 0:08:02]} 21. Rc7+ {[%emt 0:00:05]} Kf8 {[%emt 0:09:22][%cal Bf7f8,Bf8e8,Be8d8][%mdl 32] [#] aiming for ...Nb5+.} 22. Rd1 $1 {[%emt 0:00:11] Hoping for Ke1.} Nf5+ {[%emt 0:19:57]} (22... Bxe5 $2 {is a self mate.} 23. Bxh6+) 23. Ke2 {[%emt 0:00:11][%cal Rd1d8] The board is on fire.} Rxd1 {[%emt 0:00:14]} 24. Bc5+ {[%emt 0:00:14]} Ke8 {[%emt 0:01:29]} 25. Kxd1 {[%emt 0:00:13] [#] Threatens to win with Bg6+.} Bd7 {[%emt 0:05:27]} (25... Bxe5 $5 26. Bg6+ Kd8 $11) 26. Bg6+ $1 {[%emt 0:00:09]} Kd8 {[%emt 0:00:05]} 27. Bb6 {[%emt 0:00:05] [#] The position is equal.} Ke7 $146 {[%emt 0:01:16]} ({Predecessor:} 27... Rc8 28. Rc6+ Ke7 29. Bc5+ Kd8 30. Bb6+ Ke7 31. Bc5+ Kd8 32. Bb6+ {½-½ (32) Andreikin,D (2724)-Grischuk,A (2764) Belgrade 2022}) 28. Bc5+ {[%emt 0:00:25]} Kd8 {[%emt 0:00:06]} 29. Bb6 {[%emt 0:00:12]} Ke7 {[%emt 0:00:05]} 30. Bc5+ {[%emt 0:00:03] Weighted Error Value: White=0.02 (flawless) /Black=0.01 (flawless)} 1/2-1/2

[Event "Mitropa Cup Open 2022"]
[Site "Corte"]
[Date "2022.05.01"]
[Round "2.8"]
[White "Loiseau, Quentin"]
[Black "Deuer, Marius"]
[Result "1-0"]
[ECO "B12"]
[WhiteElo "2462"]
[BlackElo "2356"]
[Annotator "TA"]
[PlyCount "116"]
[EventDate "2022.04.30"]
[EventType "team-tourn"]
[EventCountry "FRA"]
[SourceTitle "playchess.com"]
[Source "ChessBase"]
[SourceQuality "1"]
[TimeControl "40/5400+30:1800+30"]

{[%evp 13,116,8,10,0,36,14,0,10,0,12,14,5,7,0,0,0,0,8,0,0,0,0,0,0,0,0,0,0,16,10,6,17,12,0,0,0,0,0,0,0,64,71,65,60,69,0,235,7,3,0,0,0,0,0,0,0,0,0,0,0,0,0,0,0,0,0,52,62,54,42,54,62,105,70,194,203,987,856,920,853,1009,1009,1009,881,709,0,0,0,0,0,0,0,0,0,0,0,0,0,8,8,29984,29985,29985,29986,29987]} 1. e4 {[%emt 0:00:30]} c6 {[%emt 0:00:11][%cal Bc7c6,Bc6c5][%mdl 32]} 2. d4 {[%emt 0:00:27]} d5 {[%emt 0:00:14]} 3. e5 {[%emt 0:01:11]} Bf5 {[%emt 0:00:14]} 4. Nf3 {[%emt 0:00:34]} e6 {[%emt 0:00:52]} 5. Be2 {[%emt 0:00:07]} c5 {[%emt 0:00:08]} 6. Be3 {[%emt 0:00:50]} Qb6 {[%emt 0:01:20]} 7. Nc3 {[%emt 0:01:06]} Nc6 {[%emt 0:00:07]} (7... Qxb2 8. Nb5 $16) 8. O-O {[%emt 0:01:47] Black must now prevent dxc5. B12: Caro-Kann: Advance Variation.} Qxb2 {[%emt 0:01:21]} 9. Qe1 {[%emt 0:03:43]} (9. Nb5 $5 {[%cal Rb5c7]} Rc8 10. dxc5 $16) 9... cxd4 {[%emt 0:00:11]} ({Don't play} 9... Bxc2 10. dxc5 Bg6 11. a3 $16) 10. Bxd4 {[%emt 0:01:56] The position is equal.} Nxd4 {[%emt 0:00:10]} (10... Qxc2 $2 11. Rc1 Qb2 12. Nxd5 $1 {[%mdl 512]} Qxc1 13. Nc7+ Kd7 14. Qxc1 $18) (10... Bxc2 $2 11. Nb5 Nxd4 12. Nfxd4 $18) 11. Nxd4 {[%emt 0:00:05][%cal Bf3d4,Bd4b5,Bb5d6][%mdl 32]} Bb4 {[%emt 0:00:06]} 12. Ndb5 {[%emt 0:01:10]} Ba5 $1 {[%emt 0:00:42]} ({Don't do} 12... Bxc2 13. Qd2 Bxc3 14. Nxc3 $16) 13. Rb1 {[%emt 0:00:20]} Qxc2 {[%emt 0:00:37]} 14. Rc1 {[%emt 0:00:02]} Qb2 {[%emt 0:00:07]} 15. Na4 {[%emt 0:00:08][%csl LRa5,LRb2]} Bxe1 {[%emt 0:02:34]} (15... Qxe5 $2 16. Qxa5 Rd8 17. Rfe1 $18) 16. Nxb2 {[%emt 0:00:31]} Ba5 {[%emt 0:00:11]} 17. Nd6+ {[%emt 0:00:10]} Ke7 {[%emt 0:14:54]} 18. Nxb7 {[%emt 0:00:37] Pair of Knights!} Bd8 {[%emt 0:05:42]} 19. Nxd8 {[%emt 0:01:08]} Kxd8 {[%emt 0:00:52]} 20. Rfd1 {[%emt 0:00:12]} Nh6 {[%emt 0:06:15]} 21. Nc4 {[%emt 0:07:30][%mdl 1024] [#] White has compensation.} Ke7 $146 {[%emt 0:05:16]} ({Predecessor:} 21... f6 22. f4 Bg4 23. Bxg4 Nxg4 24. h3 Nh6 25. Nd6 Kd7 26. Rc3 fxe5 27. fxe5 Rhd8 {½-½ (44) Sarana,A (2631)-Rozum,I (2573) Khanty-Mansiysk 2018}) 22. Nd6 {[%emt 0:06:16] aiming for Rc7+.} Rhd8 {[%emt 0:02:19]} 23. Bb5 {[%emt 0:04:31]} Kf8 {[%emt 0:06:06]} 24. Rc7 $36 {[%emt 0:03:10][%mdl 2048] White is more active.} a6 {[%emt 0:10:16]} 25. Be2 {[%emt 0:02:42]} g5 {[%emt 0:08:39]} 26. g4 {[%emt 0:12:11]} Bxg4 {[%emt 0:06:32]} (26... Bg6 $11) 27. Bxg4 $14 {[%emt 0:01:16]} Nxg4 {[%emt 0:00:09]} 28. Nxf7 {[%emt 0:00:08] And now h3 would win. 0x0.00192b908bb7dp-1022s more active pieces.} Rdc8 $1 {[%emt 0:09:24] [#]} 29. Rd7 {[%emt 0:09:25]} (29. Nxg5 $1 $14 Rxc7 30. Nxe6+ Ke7 31. Nxc7) 29... Re8 $2 {[%emt 0:02:33]} (29... Kg8 $11 {and Black is okay.}) 30. Nxg5 $2 {[%emt 0:04:50]} ({White should play} 30. Rb1 $18) 30... Re7 $1 $11 {[%emt 0:03:46]} 31. Nxh7+ {[%emt 0:01:53]} Ke8 {[%emt 0:00:21]} 32. Rxe7+ {[%emt 0:01:58]} Kxe7 {[%emt 0:00:02][%mdl 4096] Endgame KRN-KRN} 33. f4 {[%emt 0:04:24] Hoping for Rb1.} Rg8 {[%emt 0:00:25] ...Ne3+ is the strong threat.} 34. Ng5 {[%emt 0:02:06]} Nxe5 $1 {[%emt 0:00:42]} 35. Kf2 {[%emt 0:00:28]} Ng6 {[%emt 0:02:43]} 36. Kg3 {[%emt 0:01:31]} Kf6 {[%emt 0:03:51][%cal Og6f4]} 37. h4 {[%emt 0:00:21]} Kf5 {[%emt 0:01:49]} 38. Rf1 {[%emt 0:04:26]} d4 {[%emt 0:03:44]} 39. h5 {[%emt 0:03:58]} Nf8 {[%emt 0:02:59]} (39... e5 $11 40. hxg6 exf4+ 41. Rxf4+ Kxg5) 40. Re1 $14 {[%emt 0:03:48]} Nd7 {[%emt 0:01:24]} 41. Kf3 $1 {[%emt 0:32:15]} Rc8 $1 {[%emt 0:17:13]} (41... e5 $2 42. Nf7 Rg7 43. Nxe5 $18) 42. Ne4 {[%emt 0:00:00] Inhibits Rc3+.} ({Of course not} 42. Nxe6 Rc3+ 43. Kg2 Rc2+ 44. Kf1 Rxa2 $11) 42... Rg8 {[%emt 0:02:37]} 43. Rc1 {[%emt 0:00:00] Strongly threatening Rc7.} e5 {[%emt 0:04:03] [#]} ({Better is} 43... Rf8 $1 $14) 44. Rc7 $1 $18 {[%emt 0:00:00]} Rd8 {[%emt 0:00:43]} (44... Rg7) 45. Rc6 {[%emt 0:00:00][%cal Re4g3]} Rg8 {[%emt 0:03:12]} 46. Rd6 {[%emt 0:00:00]} Rg4 {[%emt 0:02:44]} 47. Ng3+ {[%emt 0:00:00]} Rxg3+ {[%emt 0:00:08]} 48. Kxg3 {[%emt 0:00:00]} Nf6 {[%emt 0:03:17]} 49. Rxf6+ $2 {[%emt 0:00:00]} Kxf6 $11 {[%emt 0:00:07]} 50. fxe5+ {[%emt 0:00:00]} Kxe5 $18 {[%emt 0:00:26] KPP-KPP} 51. h6 {[%emt 0:00:00] Intending h7 and mate.} Kf6 {[%emt 0:00:15]} 52. Kf4 {[%emt 0:00:00] White wants to mate with Ke4.} Kg6 {[%emt 0:00:06]} 53. Ke4 {[%emt 0:00:00]} Kxh6 {[%emt 0:00:15]} 54. Kxd4 {[%emt 0:00:00]} Kg6 {[%emt 0:00:11]} 55. Kc5 {[%emt 0:00:00] Kb6 would kill now.} Kf6 {[%emt 0:00:53]} 56. Kb6 {[%emt 0:00:00]} Ke6 $2 {[%emt 0:00:19][%mdl 8192]} (56... a5 $11) 57. Kxa6 {[%emt 0:00:00]} Kd6 {[%emt 0:00:34]} 58. Kb6 {[%emt 0:00:00]} Kd5 {Weighted Error Value: White=0.22 (precise) /Black=0.31} 1-0

[Event "Mitropa Cup Open 2022"]
[Site "Corte"]
[Date "2022.05.02"]
[Round "3.2"]
[White "Koellner, Ruben Gideon"]
[Black "Kusa, Jakub"]
[Result "1/2-1/2"]
[ECO "D02"]
[WhiteElo "2440"]
[BlackElo "2329"]
[Annotator "TA"]
[PlyCount "98"]
[EventDate "2022.04.30"]
[EventType "team-tourn"]
[EventCountry "FRA"]
[SourceTitle "playchess.com"]
[Source "ChessBase"]
[SourceQuality "1"]
[TimeControl "40/5400+30:1800+30"]

{[%evp 11,98,0,-3,-3,0,0,0,2,16,14,-4,-10,-8,-11,-8,-4,-9,-2,-9,-9,0,-7,0,-14,-4,-4,-4,-4,-3,0,6,0,8,19,18,-12,-13,-12,0,0,0,-6,0,0,0,0,0,0,0,0,0,0,0,0,0,0,16,0,0,0,0,0,0,0,972,0,0,0,0,0,0,0,0,0,23,0,0,0,0,0,0,0,0,0,0,0,0,0,0]} 1. d4 {[%emt 0:00:03]} d5 {[%emt 0:00:13]} 2. Nf3 {[%emt 0:00:05]} e6 {[%emt 0:00:47]} 3. Bf4 {[%emt 0:00:07]} Bd6 {[%emt 0:01:19]} 4. e3 {[%emt 0:00:07]} Nf6 {[%emt 0:01:06]} 5. Ne5 {[%emt 0:00:09]} O-O {[%emt 0:01:19]} 6. Nd2 {[%emt 0:00:05]} c5 {[%emt 0:00:56]} 7. c3 {[%emt 0:00:05] D02: 1 d4 d5 2 Nf3 sidelines, including 2...Nf6 3 g3 and 2...Nf6 3 Bf4.} Qc7 {[%emt 0:00:56] is now debated instead of 7...Nc6.} 8. Bd3 {[%emt 0:00:17]} Nbd7 {[%emt 0:05:19][%cal Rd7e5]} 9. Ndf3 {[%emt 0:00:08]} c4 {[%emt 0:04:26]} 10. Bc2 {[%emt 0:01:05]} b5 {[%emt 0:02:01]} 11. Nxd7 {[%emt 0:04:50] [#]} (11. O-O {seems wilder.} a5 12. Nxd7 Nxd7 13. Bxd6 Qxd6 14. e4) 11... Nxd7 $146 {[%emt 0:06:01]} ({Predecessor:} 11... Bxd7 12. Ne5 Rfd8 13. Qf3 h6 14. Nxd7 Rxd7 15. Bxh6 b4 16. Bf4 bxc3 17. bxc3 Bxf4 18. exf4 {½-½ (26) Siepen,R (1600)-Nikolaus,M (1326) Gelsenkirchen 2014}) 12. Bxd6 {[%emt 0:00:51]} Qxd6 {[%emt 0:00:16]} 13. e4 dxe4 {[%emt 0:03:38]} 14. Bxe4 {[%emt 0:00:26]} Rb8 {[%emt 0:00:17]} 15. O-O {[%emt 0:05:13]} Bb7 {[%emt 0:04:15]} 16. Qe2 {[%emt 0:04:55]} Bd5 {[%emt 0:04:38]} 17. Bxd5 {[%emt 0:01:14]} Qxd5 {[%emt 0:01:28]} 18. a3 {[%emt 0:00:19]} a5 {[%emt 0:04:33]} 19. Rfe1 {[%emt 0:00:28]} Rfc8 {[%emt 0:04:12]} 20. Ne5 {[%emt 0:01:58]} Nxe5 {[%emt 0:13:49]} 21. Qxe5 {[%emt 0:00:40]} b4 {[%emt 0:03:33]} 22. axb4 {[%emt 0:06:21]} axb4 {[%emt 0:02:32]} 23. Qg3 {[%emt 0:00:30]} Qf5 {[%emt 0:05:07]} 24. Rac1 {[%emt 0:03:13]} bxc3 25. bxc3 {[%emt 0:00:57]} Rb2 {[%emt 0:04:12]} 26. h4 {[%emt 0:00:30]} h6 {[%emt 0:05:37]} 27. Re5 {[%emt 0:05:19]} Qd3 {[%emt 0:01:57]} 28. Re3 {[%emt 0:02:40]} Qf5 {[%emt 0:01:09]} 29. Rf3 {[%emt 0:01:34]} Qe4 {[%emt 0:00:35]} 30. Re3 {[%emt 0:23:07]} Qf5 {[%emt 0:02:52]} 31. Ra1 Rb1+ 32. Rxb1 {[%emt 0:00:48]} Qxb1+ $11 {[%emt 0:00:31][%mdl 4096] Endgame KQR-KQR} 33. Kh2 {[%emt 0:00:11]} Qf5 34. Rf3 {[%emt 0:15:27]} Qe4 {[%emt 0:01:58]} 35. Kh3 {[%emt 0:05:19]} h5 {[%emt 0:04:51]} 36. Qg5 {[%emt 0:06:47]} g6 {[%emt 0:02:39]} 37. Qf6 {[%emt 0:00:30]} Qg4+ {[%emt 0:00:30]} 38. Kh2 {[%emt 0:01:10]} Rf8 {[%emt 0:02:47]} 39. Rf4 {[%emt 0:02:17]} Qd1 40. Qe5 {[%emt 0:00:07]} Qd3 {[%emt 0:04:47]} 41. Rf3 {[%emt 0:37:50]} Qb1 {[%emt 0:04:59]} 42. Rg3 {[%emt 0:00:00]} Qb8 {[%emt 0:01:44]} 43. Re3 {[%emt 0:00:00]} Rd8 {[%emt 0:02:57] The position is equal.} 44. Kh3 {[%emt 0:00:00]} Qb7 {[%emt 0:00:34]} 45. Qc5 {[%emt 0:00:00]} Rc8 {[%emt 0:01:47]} 46. Qe5 {[%emt 0:00:00]} Rd8 {[%emt 0:00:53]} 47. Qc5 {[%emt 0:00:00]} Rc8 {[%emt 0:00:30]} 48. Qe5 {[%emt 0:00:00]} Rd8 {[%emt 0:00:54]} 49. Qc5 Rc8 {Weighted Error Value: White=0.02 (flawless) /Black=0.04 (flawless)} 1/2-1/2

[Event "Mitropa Cup Open 2022"]
[Site "Corte"]
[Date "2022.05.02"]
[Round "3.3"]
[White "Mica, Marek"]
[Black "Krastev, Alexander"]
[Result "1-0"]
[ECO "A30"]
[WhiteElo "2334"]
[BlackElo "2402"]
[Annotator "TA"]
[PlyCount "99"]
[EventDate "2022.04.30"]
[EventType "team-tourn"]
[EventCountry "FRA"]
[SourceTitle "playchess.com"]
[Source "ChessBase"]
[SourceQuality "1"]
[TimeControl "40/5400+30:1800+30"]

{[%evp 17,99,79,70,52,40,46,52,54,77,75,102,55,54,-23,-14,-21,-27,-16,-20,-37,-27,-25,-14,-20,-14,-14,45,49,97,-57,-60,-105,-105,-185,-93,-189,-199,-312,-308,-266,-280,-402,-404,-377,-283,-239,-45,-56,0,-189,-70,-97,0,0,0,0,0,0,205,180,168,174,281,272,339,0,0,-81,222,103,156,0,0,0,0,-111,-85,-91,473,507,487,243,223,211]} 1. Nf3 {[%emt 0:00:04]} c5 {[%emt 0:01:49]} 2. c4 {[%emt 0:00:07]} Nf6 {[%emt 0:00:46]} 3. g3 {[%emt 0:00:13]} b6 {[%emt 0:00:55]} 4. Bg2 {[%emt 0:00:36]} Bb7 {[%emt 0:00:05]} 5. Nc3 {[%emt 0:00:56]} e6 {[%emt 0:00:52]} 6. O-O {[%emt 0:02:30]} Be7 {[%emt 0:01:46]} 7. d4 {[%emt 0:00:23]} O-O {[%emt 0:01:24]} 8. d5 {[%emt 0:02:26]} exd5 {[%emt 0:00:10]} 9. cxd5 {[%emt 0:03:57]} d6 {[%emt 0:00:15][%cal Ob6b5]} 10. a4 {[%emt 0:04:28] E18: Queen's Indian: Old Main Line (4 g3 Bb7 5 Bg2 Be7 6 0-0 0-0 7 Nc3).} Na6 {[%emt 0:02:25]} 11. Nd2 {[%emt 0:04:44]} Nb4 {[%emt 0:15:48][%cal Rb4d5]} 12. Nc4 {[%emt 0:00:52] White is slightly better.} Re8 {[%emt 0:03:42]} 13. e4 {[%emt 0:10:20] [#]} Ba6 $146 {[%emt 0:20:17]} ({Predecessor:} 13... Qd7 14. Bf4 Rad8 15. b3 Qc8 16. Re1 h6 17. h3 Bf8 18. g4 Bxd5 19. exd5 Rxe1+ 20. Qxe1 {1-0 (29) Cerny,M (2136)-Vitova,A (1822) Czech Republic 2018}) 14. b3 {[%emt 0:01:46] White is more active.} (14. Nb5 $16) 14... Nd7 $14 {[%emt 0:00:54]} 15. Re1 {[%emt 0:03:04]} ({White should try} 15. Bd2 $14) 15... Bf6 $1 $11 {[%emt 0:00:33]} 16. Bb2 {[%emt 0:01:38]} Bxc4 {[%emt 0:04:12]} 17. bxc4 {[%emt 0:00:12]} Bd4 {[%emt 0:00:04] aiming for ...Qf6.} 18. Qe2 $1 {[%emt 0:17:40]} Qf6 {[%emt 0:12:32]} (18... f5 $5) 19. Nd1 {[%emt 0:03:17]} Ne5 {[%emt 0:02:00] Black wants to play ...Ned3.} 20. Rb1 $1 {[%emt 0:08:16] Black must now prevent Bxd4.} Ned3 $36 {[%emt 0:10:28][%mdl 2048] Black is more active. Pair of Knights!} (20... Nbd3 21. Bxd4 cxd4 22. f4 $16) 21. Rf1 {[%emt 0:01:48]} a5 {[%emt 0:01:12]} (21... Nxb2 $11 22. Nxb2 Re7) 22. Ba3 $1 $14 {[%emt 0:01:32]} Qd8 {[%emt 0:08:04]} (22... Ne5 $14 {is more appropriate.}) 23. Nb2 $2 {[%emt 0:09:21]} (23. Rb3 $1 $16 {[%cal Rb3d3]}) 23... Ne5 $15 {[%emt 0:00:05]} 24. Kh1 {[%emt 0:07:04]} Qd7 {[%emt 0:00:20]} 25. Ra1 {[%emt 0:03:56]} (25. Rbc1 $17) 25... h5 {[%emt 0:01:06]} (25... f5 $19 {...fxe4 is the strong threat.} 26. Bh3 Ng4 27. Bxg4 fxg4) 26. h3 {[%emt 0:01:21]} ({Wrong is} 26. Qxh5 $2 Qg4 27. Qxg4 Nxg4 $19) (26. Rae1 $17) 26... f5 $1 $19 {[%emt 0:09:34][%cal Bf7f5,Bf5e4,Be4e3][%mdl 32]} 27. Kh2 {[%emt 0:02:34]} (27. f4 $142 Nf7 28. Rac1) 27... Qf7 {[%emt 0:01:16]} 28. f4 {[%emt 0:03:35]} Nd7 {[%emt 0:00:18]} 29. Nd3 {[%emt 0:02:50]} (29. Rad1 $142) 29... fxe4 {[%emt 0:00:34]} 30. Nf2 {[%emt 0:00:40]} e3 {[%emt 0:00:38]} 31. Ne4 {[%emt 0:00:24]} Qe7 {[%emt 0:00:50]} ({Black should play} 31... Bxa1 $19 32. Rxa1 h4) 32. Ng5 {[%emt 0:00:40][%cal Og2e4]} h4 {[%emt 0:00:36]} (32... Bxa1 $15 33. Rxa1 Qf6) 33. gxh4 $2 {[%emt 0:00:42]} (33. Be4 $1 $11) 33... Qf6 {[%emt 0:00:33]} (33... Bxa1 $19 34. Rxa1 Qf6) 34. Rad1 {[%emt 0:01:01]} Qh6 {[%emt 0:00:23]} (34... Qf5 $1 $17) 35. Bf3 $11 {[%emt 0:00:50][%cal Bg2f3,Bf3e4,Be4g6][%mdl 32]} Nf6 {[%emt 0:00:27]} 36. h5 {[%emt 0:00:47]} Nh7 {[%emt 0:00:49]} 37. h4 {[%emt 0:00:43]} Rf8 $2 {[%emt 0:00:17]} (37... Re7 $11) 38. Be4 $1 $18 {[%emt 0:00:59]} Nf6 {[%emt 0:00:39]} 39. Bg6 {[%emt 0:00:20]} Ra7 {[%emt 0:00:43]} (39... Na2 {might work better.}) 40. Ne6 {[%emt 0:00:36][%csl LRd4,LRf8]} Re7 {[%emt 0:00:29]} 41. Nxd4 $2 {[%emt 0:08:24] Really sharp!} (41. Nxf8 $18 Kxf8 42. Kg2) 41... cxd4 $11 {[%emt 0:00:17]} 42. Rxd4 {[%emt 0:00:06] [#]} (42. Bxb4 $11 {remains equal.} axb4 43. Rxd4) 42... Nd7 $2 {[%emt 0:00:17][%mdl 8192]} (42... Nxh5 $1 $17 {and life is bright.} 43. Bxh5 (43. Qxh5 e2) 43... Nc2) 43. Kg3 {[%emt 0:02:30]} (43. Bc1 $18 {and White stays clearly on top.}) 43... Rf6 {[%emt 0:03:29] [#]} ({Better is} 43... Nc5) 44. Bxb4 $2 {[%emt 0:12:55]} (44. Bb1 $1 $16) 44... Rxg6+ {[%emt 0:01:58]} 45. hxg6 {[%emt 0:00:10]} Qxg6+ {[%emt 0:00:02]} 46. Qg4 {[%emt 0:02:39] [#]} (46. Kh3 $1 $11 Qf5+ 47. Kg3 axb4 48. Rd3) 46... e2 $1 $17 {[%emt 0:01:02][%mdl 512]} 47. Rg1 {[%emt 0:02:07]} (47. Qxg6 $2 {too greedy.} exf1=Q 48. Re4 Qd3+ 49. Kf2 Rxe4 $19) 47... Qf6 {[%emt 0:23:19][%mdl 8192]} (47... Qxg4+ $17 48. Kxg4 axb4) 48. Bc3 $18 {[%emt 0:00:43]} Re3+ {[%emt 0:00:05]} 49. Kf2 {[%emt 0:00:13]} (49. Kh2 $142 Rxc3 50. Re4) 49... Rxc3 {[%emt 0:00:03]} 50. Qe6+ {[%emt 0:00:11] What a bad dream for Black.  Weighted Error Value: White=0.50/Black=0.61} 1-0